[Event "55th Iranian-ch Men Final 2022"]
[Site "Iran"]
[Date "2022.06.20"]
[Round "8.2"]
[White "Khamisi, S Jafar"]
[Black "Atakhan, Abtin"]
[Result "1/2-1/2"]
[ECO "B35"]
[WhiteElo "2118"]
[BlackElo "2358"]
[Annotator "TA"]
[PlyCount "112"]
[EventDate "2022.06.15"]
[EventType "tourn"]
[EventCountry "IRI"]
[SourceTitle "playchess.com"]
[Source "ChessBase"]
[SourceQuality "1"]
[TimeControl "40/5400+30:1800+30"]

{[%evp 16,112,35,30,29,19,47,0,10,24,11,13,16,17,14,0,0,0,0,0,0,0,0,0,0,0,0,0,0,0,0,-4,0,0,0,0,0,0,0,0,0,0,0,0,0,0,0,0,0,0,0,0,0,0,0,0,0,0,0,0,0,0,0,0,0,0,0,0,1,1,8,0,0,0,0,0,7,0,7,0,0,0,9,0,12,0,0,-9,6,0,6,7,21,15,62,0,0,0,0]} 1. e4 {[%emt 0:00:04]} c5 {[%emt 0:01:03]} 2. Nf3 {[%emt 0:00:09]} Nc6 {[%emt 0:00:41]} 3. d4 {[%emt 0:00:25]} cxd4 {[%emt 0:00:18]} 4. Nxd4 {[%emt 0:00:09]} g6 {[%emt 0:00:16]} 5. Nc3 {[%emt 0:01:12]} Bg7 {[%emt 0:00:27]} 6. Be3 {[%emt 0:01:25]} Nf6 {[%emt 0:00:08]} 7. Bc4 {[%emt 0:00:33]} Qa5 {[%emt 0:01:00]} 8. O-O {[%emt 0:02:46]} O-O {[%emt 0:00:19]} 9. Nb3 {[%emt 0:01:20]} Qd8 {[%emt 0:10:13] B35: Sicilian: Accelerated Dragon with 5 Nc3: main line.} 10. Qd2 {[%emt 0:03:23] [#]} d6 $146 {[%emt 0:07:56]} ({Predecessor:} 10... Re8 11. Bh6 Bh8 12. Qf4 d6 13. Rad1 Ne5 14. Bb5 Bd7 15. Bxd7 Qxd7 16. Qc1 Qc6 17. Nd4 {1-0 (29) Leosson,A (1773)-Kvamme,I (1444) Reykjavik 2017}) 11. Bh6 {[%emt 0:04:00]} (11. Be2 $14) 11... a6 {[%emt 0:02:47]} 12. Bxg7 {[%emt 0:02:36]} Kxg7 {[%emt 0:00:13]} 13. a4 {[%emt 0:02:59]} Na5 {[%emt 0:10:58]} 14. Nxa5 {[%emt 0:06:42]} Qxa5 {[%emt 0:00:09]} 15. Qd4 {[%emt 0:00:12]} Be6 {[%emt 0:06:41]} 16. Nd5 {[%emt 0:22:28] Against Qb4} Bxd5 {[%emt 0:05:42]} 17. exd5 {[%emt 0:00:10]} Qb4 {[%emt 0:13:02] [#] aiming for ...b5.} 18. c3 {[%emt 0:04:02]} Qc5 {[%emt 0:01:21]} 19. Qxc5 {[%emt 0:06:59]} dxc5 {[%emt 0:00:12]} 20. Rfe1 {[%emt 0:00:10]} Rfe8 {[%emt 0:01:00]} 21. a5 {[%emt 0:05:49]} Kf8 {[%emt 0:03:57]} 22. Rad1 {[%emt 0:15:40]} Red8 {[%emt 0:02:49]} 23. Rd3 {[%emt 0:07:26]} Rac8 {[%emt 0:01:58]} 24. f3 {[%emt 0:02:37]} Rc7 {[%emt 0:06:26]} 25. Kf2 {[%emt 0:00:40]} Rcd7 {[%emt 0:02:54][%cal Rf6d5]} 26. Red1 {[%emt 0:00:39]} Ne8 {[%emt 0:01:14]} 27. Ke2 {[%emt 0:05:34]} Nd6 {[%emt 0:00:07]} 28. b3 {[%emt 0:00:08]} Kg7 {[%emt 0:00:30]} 29. R3d2 {[%emt 0:02:23]} Kf6 {[%emt 0:00:45]} 30. f4 {[%emt 0:00:56]} Ne4 {[%emt 0:00:24][%csl LRc3,LRd2]} 31. Rd3 {[%emt 0:00:17]} Kg7 {[%emt 0:02:23]} 32. Ke3 {[%emt 0:00:43]} Nf6 {[%emt 0:00:19]} 33. Kf3 {[%emt 0:00:27]} Ne8 {[%emt 0:01:07]} 34. Ke3 {[%emt 0:00:36]} Rd6 {[%emt 0:01:44]} 35. R3d2 {[%emt 0:00:18]} Nf6 {[%emt 0:00:01]} 36. g3 {[%emt 0:00:48]} h5 {[%emt 0:00:22][%cal Oh5h4]} 37. h3 {[%emt 0:00:12]} Nd7 {[%emt 0:00:37]} 38. Be2 {[%emt 0:01:18]} Nf6 {[%emt 0:05:44][%cal Rf6d5]} 39. Bc4 {[%emt 0:00:17]} R6d7 {[%emt 0:01:49]} 40. Rd3 {[%emt 0:00:00]} Ne8 {[%emt 0:00:00]} 41. Kf3 {[%emt 0:06:40]} Rd6 {[%emt 0:03:30]} 42. Re3 {[%emt 0:05:40]} Kf8 {[%emt 0:01:05]} 43. Rde1 {[%emt 0:01:52]} R8d7 {[%emt 0:00:43]} 44. Rd1 {[%emt 0:00:34]} Nc7 {[%emt 0:05:21][%cal Rc7d5]} 45. Red3 $1 {[%emt 0:00:38]} Rd8 {[%emt 0:01:48]} 46. Ke3 {[%emt 0:03:40]} Ne8 {[%emt 0:03:19]} 47. R3d2 {[%emt 0:01:01]} Kg7 {[%emt 0:01:03]} 48. Kf3 {[%emt 0:00:54]} Nf6 {[%emt 0:01:19]} 49. Rd3 {[%emt 0:00:31]} Kf8 {[%emt 0:01:50]} 50. Ke3 {[%emt 0:00:31]} Nd7 {[%emt 0:00:05]} 51. Ra1 {[%emt 0:10:15]} b5 {[%emt 0:10:49]} 52. axb6 $1 {[%emt 0:00:07]} Nxb6 {[%emt 0:00:04]} 53. Ra5 {[%emt 0:01:24]} Rc8 {[%emt 0:00:39]} 54. Ke2 {[%emt 0:03:14]} ({Reject} 54. Bxa6 Ra8 55. Rxc5 Rxa6 $17) 54... e6 {[%emt 0:06:34]} (54... Kg7 $11) 55. dxe6 {[%emt 0:01:33]} (55. Bxa6 $14 Rc7 56. dxe6 Rxe6+ 57. Re3) 55... Nxc4 $11 {[%emt 0:00:30][%mdl 64] [#] Remove Defender} 56. bxc4 {[%emt 0:00:30]} Rxe6+ {[%emt 0:00:00] Weighted Error Value: White=0.04 (flawless) /Black=0.03 (flawless)} 1/2-1/2

[Event "55th Iranian-ch Men Final 2022"]
[Site "Iran"]
[Date "2022.06.20"]
[Round "8.3"]
[White "Daneshvar, Bardiya"]
[Black "Mousavi, Seyed Khalil"]
[Result "1/2-1/2"]
[ECO "A80"]
[WhiteElo "2486"]
[BlackElo "2524"]
[Annotator "TA"]
[PlyCount "54"]
[EventDate "2022.06.15"]
[EventType "tourn"]
[EventCountry "IRI"]
[SourceTitle "playchess.com"]
[Source "ChessBase"]
[SourceQuality "1"]
[TimeControl "40/5400+30:1800+30"]

{[%evp 9,54,13,22,20,32,2,7,0,51,45,31,14,39,21,28,0,2,7,10,17,16,10,44,26,14,0,0,0,2,6,32,41,47,0,13,33,86,78,81,68,88,43,66,40,199,31,22]} 1. d4 {[%emt 0:00:02]} f5 {[%emt 0:00:52]} 2. Bf4 {[%emt 0:00:08]} Nf6 {[%emt 0:01:01]} 3. e3 {[%emt 0:00:09]} e6 {[%emt 0:02:08]} 4. Nf3 {[%emt 0:01:33]} b6 {[%emt 0:01:09]} 5. Bd3 {[%emt 0:02:05]} Bb7 {[%emt 0:00:32]} 6. O-O {[%emt 0:01:06] A80: Dutch Defence: Unusual White second moves.} Bd6 {[%emt 0:00:42]} 7. Nbd2 {[%emt 0:06:48]} O-O {[%emt 0:07:17] [#]} 8. c3 $146 {[%emt 0:03:57] The position is equal.} ({Predecessor:} 8. c4 Ne4 9. Bxd6 cxd6 10. Qc2 Nxd2 11. Nxd2 Qg5 12. e4 Nc6 13. f4 Qh6 14. d5 {0-1 (34) Teich,U (1910)-Hille,R (2061) Germany 2018}) 8... Nh5 {[%emt 0:08:23]} (8... Bxf4 $11 9. exf4 Nc6) 9. Bxd6 $14 {[%emt 0:05:16]} cxd6 {[%emt 0:00:11]} 10. Re1 {[%emt 0:03:23]} Nc6 {[%emt 0:14:05]} 11. a4 {[%emt 0:06:25]} (11. e4 {is more complex.} Nf4 12. Bf1 Ne7 13. exf5 Nxf5 14. g3) 11... d5 {[%emt 0:04:37]} 12. Bf1 {[%emt 0:05:36]} Nf6 {[%emt 0:02:56]} 13. Ne5 {[%emt 0:05:50]} Nxe5 {[%emt 0:08:37]} 14. dxe5 {[%emt 0:00:10]} Ng4 {[%emt 0:00:43] [#] aiming for ...Qh4.} 15. Nf3 {[%emt 0:00:53] Against Qh4} g5 {[%emt 0:11:13]} 16. h3 {[%emt 0:55:09]} Nh6 {[%emt 0:00:49]} 17. Nd4 {[%emt 0:00:00]} g4 $1 {[%emt 0:02:09]} 18. f4 {[%emt 0:00:00]} Qh4 {[%emt 0:02:41]} 19. Re2 {[%emt 0:00:00]} Ba6 {[%emt 0:04:07]} 20. Qe1 $36 {[%emt 0:00:00][%mdl 2048] White fights for an advantage.} Qe7 {[%emt 0:06:43]} 21. Nb5 {[%emt 0:00:00]} (21. Rc2 $14 {might be stronger.} Bxf1 22. Kxf1 (22. Qxf1 Kh8 $11)) 21... Bxb5 {[%emt 0:05:13]} 22. axb5 {[%emt 0:00:00]} gxh3 {[%emt 0:00:37]} ({Black should play} 22... Kh8 $14) 23. gxh3 $16 {[%emt 0:00:00]} Kh8 {[%emt 0:00:17]} 24. Rg2 {[%emt 0:00:00]} Rg8 {[%emt 0:00:52]} 25. Rxg8+ {[%emt 0:00:00]} Nxg8 {[%emt 0:02:23]} 26. Qd2 {[%emt 0:00:00]} Nh6 $2 {[%emt 0:00:38] [#]} ({Better is} 26... Qg7+ $14 27. Qg2 Qe7) 27. Kf2 $2 {[%emt 0:00:00]} (27. c4 $1 $18) 27... Nf7 {[%emt 0:03:55] Weighted Error Value: White=0.28 (precise) /Black=0.27 (precise)} 1/2-1/2

[Event "55th Iranian-ch Men Final 2022"]
[Site "Iran"]
[Date "2022.06.20"]
[Round "8.4"]
[White "Daghli, Arash"]
[Black "Ghaem Maghami, Ehsan"]
[Result "1-0"]
[ECO "B90"]
[WhiteElo "2441"]
[BlackElo "2519"]
[Annotator "TA"]
[PlyCount "77"]
[EventDate "2022.06.15"]
[EventType "tourn"]
[EventCountry "IRI"]
[SourceTitle "playchess.com"]
[Source "ChessBase"]
[SourceQuality "1"]
[TimeControl "40/5400+30:1800+30"]

{[%evp 14,77,14,6,16,0,27,13,18,12,22,16,45,43,64,46,35,47,46,9,26,8,29,20,34,39,40,8,21,7,7,20,25,27,14,0,17,0,0,0,35,12,20,0,0,-8,0,0,164,134,147,152,141,163,892,872,2129,1995,1936,1904,6223,6223,5414,5402,2667,2349]} 1. e4 {[%emt 0:00:01]} c5 {[%emt 0:14:52]} 2. Nf3 {[%emt 0:00:17][%cal Bg1f3,Bf3d4,Bd4e2,Be2g3,Bg3f1][%mdl 32]} d6 {[%emt 0:00:33]} 3. d4 {[%emt 0:00:13]} cxd4 {[%emt 0:00:10]} 4. Nxd4 {[%emt 0:00:03]} Nf6 {[%emt 0:00:09]} 5. Nc3 {[%emt 0:00:08]} a6 {[%emt 0:00:26]} 6. Bd3 {[%emt 0:00:07]} e5 {[%emt 0:10:22]} 7. Nde2 {[%emt 0:00:03]} Be7 {[%emt 0:00:41]} 8. O-O {[%emt 0:00:07]} Be6 {[%emt 0:11:56] B90: Sicilian Najdorf: Unusual White 6th moves, 6 Be3 Ng4 and 6 Be3 e5.} 9. Ng3 {[%emt 0:01:10]} Nbd7 {[%emt 0:04:10]} 10. a4 {[%emt 0:03:54] [#]} g6 $146 {[%emt 0:06:02] The position is equal.} ({Predecessor:} 10... Rc8 11. Re1 g6 12. h3 O-O 13. Bh6 Re8 14. Qd2 Bf8 15. Bg5 Qa5 16. Red1 h5 {0-1 (63) Samusenko,M (2460)-Chigaev,M (2630) Cheboksary 2021}) 11. h3 {[%emt 0:05:09]} h5 {[%emt 0:07:34]} 12. Re1 {[%emt 0:07:06][%cal Oc3d5]} h4 {[%emt 0:05:22]} 13. Nf1 {[%emt 0:00:16]} Rc8 {[%emt 0:00:54]} 14. Ne3 {[%emt 0:08:54]} Nc5 {[%emt 0:06:53]} 15. a5 {[%emt 0:04:45]} O-O {[%emt 0:02:19]} 16. Ned5 {[%emt 0:30:50]} Nxd5 {[%emt 0:09:11]} 17. Nxd5 {[%emt 0:01:08]} Bg5 {[%emt 0:17:26]} 18. b4 {[%emt 0:35:19]} Bxc1 {[%emt 0:00:00]} 19. Rxc1 {[%emt 0:00:30]} Nd7 {[%emt 0:01:00]} 20. c4 {[%emt 0:00:00]} Qg5 {[%emt 0:00:30]} 21. Kh1 {[%emt 0:01:00]} Bxd5 {[%emt 0:00:30]} 22. exd5 {[%emt 0:00:30]} f5 {[%emt 0:00:00]} 23. Bf1 {[%emt 0:00:30][%cal Oc4c5]} Qf4 {[%emt 0:01:00]} 24. Rc2 {[%emt 0:00:30]} Nf6 {[%emt 0:00:30]} 25. Kg1 {[%emt 0:00:30]} Kg7 {[%emt 0:00:00]} 26. Qd3 {[%emt 0:00:00]} Rfe8 {[%emt 0:00:00]} 27. Rd1 {[%emt 0:00:00]} e4 {[%emt 0:00:00]} 28. Qd4 {[%emt 0:00:00]} Qe5 {[%emt 0:00:00]} 29. c5 {[%emt 0:00:00][%cal Bc4c5,Bc5c6,Bc6b7][%mdl 32]} Qxd4 {[%emt 0:00:00]} 30. Rxd4 {[%emt 0:00:00]} Nd7 $2 {[%emt 0:00:00]} (30... dxc5 $11 {and Black stays safe.} 31. bxc5 Red8) 31. c6 $18 {[%emt 0:00:00]} Ne5 {[%emt 0:00:00] [#]} 32. b5 $1 {[%emt 0:00:00]} axb5 {[%emt 0:00:00]} 33. Bxb5 {[%emt 0:00:00][%cal Oc6b7]} Rc7 {[%emt 0:00:00] [#]} (33... Rf8) 34. cxb7 $1 {[%emt 0:00:49] White is clearly winning.} Rxc2 {[%emt 0:00:00]} (34... Rxb7 35. Bxe8) 35. Bxe8 {[%emt 0:00:09]} Rb2 {[%emt 0:00:15]} 36. a6 {[%emt 0:00:23][%cal Ba5a6,Ba6a7][%mdl 32]} Nd3 {[%emt 0:00:41] [#]} 37. Rxd3 $1 {[%emt 0:02:31][%mdl 512]} exd3 {[%emt 0:00:03]} (37... Rb1+ 38. Rd1) 38. a7 {[%emt 0:00:07]} d2 {[%emt 0:01:42]} 39. Ba4 {[%emt 0:03:01] Weighted Error Value: White=0.08 (flawless) /Black=0.22 (precise)} 1-0

[Event "55th Iranian-ch Men Final 2022"]
[Site "Iran"]
[Date "2022.06.20"]
[Round "8.5"]
[White "Poormosavi, Seyed Kian"]
[Black "Ashraf, Artin"]
[Result "1-0"]
[ECO "D02"]
[WhiteElo "2358"]
[BlackElo "2096"]
[Annotator "TA"]
[PlyCount "121"]
[EventDate "2022.06.15"]
[EventType "tourn"]
[EventCountry "IRI"]
[SourceTitle "playchess.com"]
[Source "ChessBase"]
[SourceQuality "1"]
[TimeControl "40/5400+30:1800+30"]

{[%evp 9,121,36,52,37,54,8,34,34,37,37,40,34,33,-18,0,0,1,9,0,0,0,0,0,0,18,5,22,31,43,0,0,-45,-41,-45,-44,-59,-45,-59,-22,-46,-48,-43,-44,-41,-37,-53,0,-13,0,-45,-39,-68,-37,-60,-33,-56,0,-75,0,-61,0,-43,-47,-63,-61,-60,-60,-54,-27,-24,-28,-35,-41,-60,-13,-44,-25,-41,-27,-81,-93,-79,-39,-79,-49,-48,-43,-50,-16,-45,-4,-3,55,0,2,0,8,0,0,0,0,-3,0,0,29987,29988,29988,29989,29994,29995,29995,29996,29996,29997]} 1. d4 {[%emt 0:00:39]} d5 {[%emt 0:06:32]} 2. Nf3 {[%emt 0:01:23]} c6 {[%emt 0:10:29]} 3. g3 {[%emt 0:00:32]} g6 {[%emt 0:00:13]} 4. Bg2 {[%emt 0:00:16]} Nh6 {[%emt 0:00:14][%cal Bg8h6,Bh6f5,Bf5d6][%mdl 32]} 5. O-O {[%emt 0:03:22]} Nf5 {[%emt 0:00:12]} 6. c3 {[%emt 0:02:27] D02: 1 d4 d5 2 Nf3 sidelines, including 2...Nf6 3 g3 and 2...Nf6 3 Bf4.} Bg7 {[%emt 0:00:14]} 7. Bf4 {[%emt 0:00:20]} (7. Nbd2 $14 {is more appropriate.}) 7... O-O {[%emt 0:01:44]} 8. Nbd2 {[%emt 0:00:57] White is slightly better.} Nd6 {[%emt 0:03:44]} 9. Re1 {[%emt 0:00:43] [#]} Bf5 $146 {[%emt 0:05:08] Inhibits e4.} ({Predecessor:} 9... Nd7 10. Qb3 Nf6 11. Rad1 h6 12. h4 Kh7 13. Ne5 Nh5 14. e3 Be6 15. Nd3 b6 {1-0 (48) Uria Aguilera,Y (1946)-Gomez Segura,A (2193) Ciego de Avila 2018}) 10. Nh4 {[%emt 0:07:49]} Be6 {[%emt 0:09:31]} 11. f3 {[%emt 0:08:50]} (11. e4 $14) 11... h6 {[%emt 0:09:42]} 12. e4 {[%emt 0:06:42]} g5 {[%emt 0:01:34]} 13. Bxd6 {[%emt 0:02:44]} Qxd6 {[%emt 0:00:15]} (13... exd6 $5 14. Nf5 Bxf5 15. exf5 Nd7 $11) 14. Nf5 {[%emt 0:00:33]} Bxf5 {[%emt 0:00:08]} 15. exf5 {[%emt 0:00:03]} Nd7 {[%emt 0:05:36]} 16. Nb3 {[%emt 0:01:40]} b6 {[%emt 0:04:45]} 17. Qd2 {[%emt 0:05:17]} Bf6 {[%emt 0:05:09]} 18. Rad1 {[%emt 0:03:23]} b5 {[%emt 0:01:48]} 19. Qf2 {[%emt 0:05:39]} b4 {[%emt 0:07:10]} 20. Nc1 {[%emt 0:08:04]} bxc3 {[%emt 0:00:59]} 21. bxc3 {[%emt 0:00:19]} Qa3 {[%emt 0:01:09]} 22. Qe3 {[%emt 0:07:38]} Nb6 {[%emt 0:01:55]} 23. Bf1 {[%emt 0:04:15]} Rfd8 {[%emt 0:02:24]} 24. f4 {[%emt 0:10:07]} c5 {[%emt 0:07:02]} 25. fxg5 {[%emt 0:02:54]} hxg5 {[%emt 0:05:06]} 26. Nb3 {[%emt 0:01:44]} cxd4 {[%emt 0:04:10]} 27. cxd4 {[%emt 0:00:03]} Kh7 {[%emt 0:01:24]} (27... Qxa2 $15 28. h4 Nc4 29. Bxc4 dxc4 30. hxg5 Qxb3 31. gxf6 Qxe3+ 32. Rxe3 exf6) 28. Re2 {[%emt 0:01:07]} Rg8 {[%emt 0:00:15]} 29. g4 {[%emt 0:05:41]} Qd6 {[%emt 0:01:07]} 30. Bg2 {[%emt 0:01:16]} Nc4 {[%emt 0:00:36]} 31. Qf3 {[%emt 0:03:28]} Rad8 {[%emt 0:00:23]} 32. Rc1 {[%emt 0:00:32][%cal Of3d5]} Qb8 {[%emt 0:01:32]} (32... Qb6 $15) 33. Qf2 {[%emt 0:01:38] [#]} (33. Qh3+ $11 Kg7 34. Bxd5 $1) 33... Qd6 {[%emt 0:01:15]} (33... a5 $1 $17) 34. Rec2 {[%emt 0:00:28]} (34. Qf3 $11) 34... Rc8 {[%emt 0:00:32]} ({Better is} 34... Qf4 $15) 35. Nd2 {[%emt 0:01:21]} Rgd8 {[%emt 0:01:21]} 36. Kh1 {[%emt 0:02:50]} Kg7 {[%emt 0:00:40]} 37. Nf1 {[%emt 0:00:47]} Qb6 {[%emt 0:01:17]} 38. Rd1 {[%emt 0:00:36]} Nd6 {[%emt 0:00:36][%cal Of6d4,Bc4d6,Bd6b5,Bb5d4][%mdl 32] White must now prevent ...Bxd4!} 39. Rxc8 {[%emt 0:00:38]} Rxc8 {[%emt 0:00:18]} 40. Bxd5 {[%emt 0:00:00]} Nb5 {[%emt 0:00:00] Threatens to win with ...Nc3.} 41. Bg2 {[%emt 0:04:33]} Rd8 {[%emt 0:13:52]} (41... Nc3 $15 42. Rd3 Qb1) 42. Ng3 {[%emt 0:07:54]} Rxd4 {[%emt 0:01:39]} 43. Rxd4 {[%emt 0:02:56]} Nxd4 {[%emt 0:01:14]} 44. Qe3 {[%emt 0:05:06]} (44. Be4 $11) 44... Qb1+ $17 {[%emt 0:01:32]} 45. Bf1 {[%emt 0:00:27]} Kf8 {[%emt 0:01:30]} (45... a5 $5 {[%cal Ra5a4]}) 46. a3 {[%emt 0:04:26]} a5 {[%emt 0:05:18]} (46... Qb2 $5 {[%cal Ra7a5]}) 47. Qe4 {[%emt 0:02:56]} Qd1 {[%emt 0:02:13]} 48. Kg2 {[%emt 0:02:34]} Kg7 {[%emt 0:01:28]} 49. Kh3 {[%emt 0:02:27]} Nf3 {[%emt 0:03:32]} (49... Qb3 $5 {[%cal Rb3a3]}) 50. Qd3 {[%emt 0:02:04]} Nd2 {[%emt 0:01:08]} (50... Qxd3 $11 51. Bxd3 Be5) 51. Bg2 {[%emt 0:00:31]} (51. a4 $14) 51... Qe1 $11 {[%emt 0:00:37]} 52. Qd5 {[%emt 0:01:02]} a4 {[%emt 0:01:15]} 53. Qc6 {[%emt 0:00:23] Qe8 is the strong threat.} Qd1 {[%emt 0:01:01]} 54. Qd7 {[%emt 0:00:54]} Qc2 $1 {[%emt 0:00:54]} 55. Bc6 {[%emt 0:00:30]} Qb2 {[%emt 0:01:12]} 56. Qe8 {[%emt 0:00:27] White threatens Bd5 and mate.} Qxa3 $2 {[%emt 0:00:29][%mdl 8192]} (56... Qb3 $11) 57. Bd5 {[%emt 0:00:20] White mates.} e6 {[%emt 0:01:04]} 58. fxe6 {[%emt 0:00:04]} fxe6 {[%emt 0:00:38]} 59. Bxe6 {[%emt 0:00:07]} Ne4 {[%emt 0:00:34]} 60. Qf7+ {[%emt 0:01:06]} Kh6 {[%emt 0:00:10]} 61. Bf5 {[%emt 0:00:43] Weighted Error Value: White=0.19 (very precise) /Black=0.26 (precise)} 1-0

[Event "55th Iranian-ch Men Final 2022"]
[Site "Iran"]
[Date "2022.06.20"]
[Round "8.6"]
[White "Naderi, Abdollah"]
[Black "Tahbaz, Arash"]
[Result "0-1"]
[ECO "E66"]
[WhiteElo "2050"]
[BlackElo "2451"]
[Annotator "TA"]
[PlyCount "44"]
[EventDate "2022.06.15"]
[EventType "tourn"]
[EventCountry "IRI"]
[SourceTitle "playchess.com"]
[Source "ChessBase"]
[SourceQuality "1"]
[TimeControl "40/5400+30:1800+30"]

{[%evp 24,44,15,1,10,-45,-45,-50,-43,-46,-39,-42,-38,-85,-84,-158,-137,-158,-158,-235,-234,-925,-821]} 1. d4 {[%emt 0:05:42]} Nf6 {[%emt 0:00:33]} 2. Nf3 {[%emt 0:00:14]} g6 {[%emt 0:00:17]} 3. g3 {[%emt 0:00:47]} Bg7 {[%emt 0:00:06]} 4. Bg2 {[%emt 0:00:09]} O-O {[%emt 0:00:05]} 5. O-O {[%emt 0:00:17]} d6 {[%emt 0:00:15]} 6. c4 {[%emt 0:00:47]} c5 {[%emt 0:02:02]} 7. Nc3 {[%emt 0:01:00]} Nc6 {[%emt 0:00:06]} 8. d5 {[%emt 0:09:56]} Na5 {[%emt 0:00:14]} 9. Nd2 {[%emt 0:00:14]} a6 {[%emt 0:00:03]} 10. Qc2 {[%emt 0:00:25]} Rb8 {[%emt 0:00:05]} 11. b3 {[%emt 0:00:34]} b5 {[%emt 0:00:04]} 12. Bb2 {[%emt 0:00:12]} e5 {[%emt 0:00:04]} 13. dxe6 {[%emt 0:15:56]} Bxe6 {[%emt 0:00:11][%cal Rb5c4] E66: King's Indian: Fianchetto: 6...c5 7 0-0 Nc6 8 d5.} (13... fxe6 {seems wilder.} 14. Rab1 Bb7 15. Bxb7 Rxb7 16. Nce4 Nc6) 14. Nd5 {[%emt 0:00:35]} (14. cxb5 $11 axb5 15. Rad1) 14... bxc4 $15 {[%emt 0:07:28]} 15. Nxf6+ {[%emt 0:07:46]} Bxf6 {[%emt 0:00:07] Black is slightly better.} 16. Bxf6 {[%emt 0:02:35]} Qxf6 {[%emt 0:00:06]} 17. bxc4 {[%emt 0:00:51] [#]} Rb4 $146 {[%emt 0:00:05][%cal Ra5c4]} ({Predecessor:} 17... Rb2 18. Qd3 Qd4 19. Nb3 Nxb3 20. axb3 Qxd3 21. exd3 Rxb3 22. Rfd1 Bg4 23. Rd2 Rfb8 {0-1 (40) Linqvist,G (2065)-Eklund,K (2051) Helsinki 2016}) 18. a3 {[%emt 0:42:08]} (18. Bd5 $15) 18... Rb2 $17 {[%emt 0:00:15][%cal Bb4b2,Bb2d2,Bd2e2,Be2f2,Bf2g2][%mdl 32]} 19. Qa4 {[%emt 0:00:09]} (19. Qd3 $142) 19... Rxd2 {[%emt 0:03:27] Black is more active.} 20. Qxa5 {[%emt 0:00:04]} Rxe2 {[%emt 0:00:21] Hoping for ...Rb8.} 21. Qxa6 {[%emt 0:00:45]} (21. Rad1 $17 {keeps fighting.}) 21... Rxf2 $1 $19 {[%emt 0:00:18]} 22. Qxd6 $2 {[%emt 0:00:08] [#]} (22. Rxf2 Qxa1+ 23. Bf1) 22... Rxg2+ $1 {[%emt 0:00:08][%mdl 512] White got outplayed after the opening.  Weighted Error Value: White=1.08/Black=0.00 (flawless)} 0-1